[Event "*** Titled Tuesday Blitz"]
[Site "Chess.com"]
[Date "2020.05.19"]
[Round "4"]
[White "Ashedu66"]
[Black "Sergey85Rodchenkov"]
[Result "0-1"]
[WhiteElo "2142"]
[BlackElo "2506"]
[TimeControl "180+1"]
[EndTime "12:39:45 PDT"]
[Termination "Sergey85Rodchenkov won by checkmate"]

1. d4 {[%clk 0:02:57.2]} 1... Nf6 {[%clk 0:02:59.6]} 2. Nf3 {[%clk 0:02:57.4]}
2... b6 {[%clk 0:02:59.5]} 3. c4 {[%clk 0:02:56.9]} 3... Bb7 {[%clk 0:02:59.4]}
4. e3 {[%clk 0:02:57]} 4... e6 {[%clk 0:02:59.6]} 5. a3 {[%clk 0:02:55.2]} 5...
d5 {[%clk 0:02:59.2]} 6. Nc3 {[%clk 0:02:54.4]} 6... Bd6 {[%clk 0:02:59.3]} 7.
b4 {[%clk 0:02:53.6]} 7... c5 {[%clk 0:02:55.6]} 8. bxc5 {[%clk 0:02:52.3]} 8...
bxc5 {[%clk 0:02:55.8]} 9. Bb2 {[%clk 0:02:49]} 9... O-O {[%clk 0:02:54.9]} 10.
cxd5 {[%clk 0:02:47.4]} 10... exd5 {[%clk 0:02:53.7]} 11. Bd3 {[%clk 0:02:47.2]}
11... c4 {[%clk 0:02:52.1]} 12. Bc2 {[%clk 0:02:46.6]} 12... Nbd7 {[%clk
0:02:50.2]} 13. O-O {[%clk 0:02:46.1]} 13... Rb8 {[%clk 0:02:49.7]} 14. Rb1
{[%clk 0:02:44.6]} 14... Ba8 {[%clk 0:02:48.3]} 15. Qe2 {[%clk 0:02:33.5]} 15...
Re8 {[%clk 0:02:45]} 16. Ba4 {[%clk 0:02:24.7]} 16... Qa5 {[%clk 0:02:44.6]} 17.
Qc2 {[%clk 0:02:24]} 17... Red8 {[%clk 0:02:36.8]} 18. Bxd7 {[%clk 0:02:10.7]}
18... Rxd7 {[%clk 0:02:29.6]} 19. Ne5 {[%clk 0:02:10.6]} 19... Re7 {[%clk
0:02:19.8]} 20. f4 {[%clk 0:02:05.3]} 20... Rb3 {[%clk 0:02:14.6]} 21. g4 {[%clk
0:01:19.5]} 21... Qb6 {[%clk 0:01:47.5]} 22. Na4 {[%clk 0:01:01.3]} 22... Qd8
{[%clk 0:01:39.7]} 23. Bc3 {[%clk 0:00:51]} 23... Reb7 {[%clk 0:01:36.2]} 24.
Nc5 {[%clk 0:00:46.3]} 24... Bxc5 {[%clk 0:01:30.8]} 25. dxc5 {[%clk 0:00:46]}
25... Ne4 {[%clk 0:01:30.6]} 26. Bd4 {[%clk 0:00:44]} 26... f6 {[%clk 0:01:28]}
27. Nxc4 {[%clk 0:00:26.2]} 27... Rxb1 {[%clk 0:01:27.1]} 28. Rxb1 {[%clk
0:00:26]} 28... Rxb1+ {[%clk 0:01:26.9]} 29. Qxb1 {[%clk 0:00:26.1]} 29... dxc4
{[%clk 0:01:27.4]} 30. Qb4 {[%clk 0:00:20.5]} 30... Bd5 {[%clk 0:01:21.5]} 31.
g5 {[%clk 0:00:19.5]} 31... fxg5 {[%clk 0:01:19.1]} 32. c6 {[%clk 0:00:18.8]}
32... Bxc6 {[%clk 0:01:11.8]} 33. Qxc4+ {[%clk 0:00:18.6]} 33... Qd5 {[%clk
0:01:11.7]} 34. Qb4 {[%clk 0:00:16.4]} 34... Nf6 {[%clk 0:01:09]} 35. Qb8+
{[%clk 0:00:07.6]} 35... Kf7 {[%clk 0:01:06]} 36. Qc8 {[%clk 0:00:06.6]} 36...
Qg2# {[%clk 0:01:04.5]} 0-1

[Event "*** Titled Tuesday Blitz"]
[Site "Chess.com"]
[Date "2020.05.19"]
[Round "4"]
[White "MisiekZielony"]
[Black "atwalcb"]
[Result "0-1"]
[WhiteElo "2104"]
[BlackElo "2334"]
[TimeControl "180+1"]
[EndTime "12:39:46 PDT"]
[Termination "atwalcb won on time"]

1. c4 {[%clk 0:03:00]} 1... e5 {[%clk 0:02:57.6]} 2. Nc3 {[%clk 0:02:59.8]} 2...
f5 {[%clk 0:02:54.1]} 3. d4 {[%clk 0:02:58.8]} 3... e4 {[%clk 0:02:51.7]} 4. a3
{[%clk 0:02:54.6]} 4... Nf6 {[%clk 0:02:51.6]} 5. h4 {[%clk 0:02:52.9]} 5... Be7
{[%clk 0:02:43.6]} 6. Nh3 {[%clk 0:02:52.6]} 6... d6 {[%clk 0:02:37.5]} 7. g3
{[%clk 0:02:50.7]} 7... O-O {[%clk 0:02:36.9]} 8. Bg5 {[%clk 0:02:44.6]} 8...
Be6 {[%clk 0:02:35.2]} 9. e3 {[%clk 0:02:41.1]} 9... c6 {[%clk 0:02:29.4]} 10.
Nf4 {[%clk 0:02:40.3]} 10... Bf7 {[%clk 0:02:29.5]} 11. Be2 {[%clk 0:02:30.2]}
11... a5 {[%clk 0:02:28.6]} 12. Kf1 {[%clk 0:02:25.4]} 12... Na6 {[%clk
0:02:24.9]} 13. Kg2 {[%clk 0:02:25.2]} 13... Nc7 {[%clk 0:02:20.5]} 14. Rc1
{[%clk 0:02:02]} 14... h6 {[%clk 0:02:07]} 15. Bxf6 {[%clk 0:02:01.3]} 15...
Bxf6 {[%clk 0:02:07]} 16. h5 {[%clk 0:01:57.5]} 16... Ne6 {[%clk 0:02:02.8]} 17.
Nxe6 {[%clk 0:01:46.7]} 17... Bxe6 {[%clk 0:02:02.9]} 18. c5 {[%clk 0:01:19.6]}
18... dxc5 {[%clk 0:01:55]} 19. dxc5 {[%clk 0:01:18.8]} 19... Qxd1 {[%clk
0:01:54]} 20. Rhxd1 {[%clk 0:01:18.1]} 20... Rfd8 {[%clk 0:01:53.7]} 21. Kf1
{[%clk 0:00:37.6]} 21... Kf7 {[%clk 0:01:49.7]} 22. Ke1 {[%clk 0:00:36]} 22...
Ke7 {[%clk 0:01:47.5]} 23. Rd2 {[%clk 0:00:20.4]} 23... Bb3 {[%clk 0:01:43]} 24.
Bd1 {[%clk 0:00:18.7]} 24... Rxd2 {[%clk 0:01:42.6]} 25. Kxd2 {[%clk 0:00:18.7]}
25... Rd8+ {[%clk 0:01:42.6]} 26. Ke2 {[%clk 0:00:16.8]} 26... Bxc3 {[%clk
0:01:30.1]} 27. Bxb3 {[%clk 0:00:16.2]} 27... Bxb2 {[%clk 0:01:30]} 28. Rc2
{[%clk 0:00:08.5]} 28... Bxa3 {[%clk 0:01:29.9]} 29. Ba2 {[%clk 0:00:08.2]}
29... Bb4 {[%clk 0:01:29]} 30. f3 {[%clk 0:00:06.4]} 30... exf3+ {[%clk
0:01:26.4]} 31. Kxf3 {[%clk 0:00:06.8]} 31... Rd2 {[%clk 0:01:25.2]} 32. g4
{[%clk 0:00:05.1]} 32... fxg4+ {[%clk 0:01:22.7]} 33. Kxg4 {[%clk 0:00:05.4]}
33... Rxc2 {[%clk 0:01:22.8]} 0-1

[Event "*** Titled Tuesday Blitz"]
[Site "Chess.com"]
[Date "2020.05.19"]
[Round "4"]
[White "Kolle05"]
[Black "davekoenig"]
[Result "1-0"]
[WhiteElo "2402"]
[BlackElo "2171"]
[TimeControl "180+1"]
[EndTime "12:39:47 PDT"]
[Termination "Kolle05 won by resignation"]

1. e4 {[%clk 0:03:00.9]} 1... e5 {[%clk 0:02:59.8]} 2. Nf3 {[%clk 0:03:00.5]}
2... Nc6 {[%clk 0:03:00.1]} 3. Bb5 {[%clk 0:03:00.5]} 3... Nf6 {[%clk
0:03:00.2]} 4. d3 {[%clk 0:02:54.3]} 4... Ne7 {[%clk 0:02:59.8]} 5. Nxe5 {[%clk
0:02:48.4]} 5... c6 {[%clk 0:02:59.8]} 6. Nc4 {[%clk 0:02:26.8]} 6... d5 {[%clk
0:02:55.9]} 7. e5 {[%clk 0:02:15.8]} 7... dxc4 {[%clk 0:02:26.7]} 8. exf6 {[%clk
0:02:13.5]} 8... cxb5 {[%clk 0:02:21.3]} 9. fxe7 {[%clk 0:02:13.5]} 9... Qxe7+
{[%clk 0:02:21.5]} 10. Be3 {[%clk 0:02:12.8]} 10... Qb4+ {[%clk 0:02:14.3]} 11.
Nd2 {[%clk 0:01:37.2]} 11... cxd3 {[%clk 0:02:08.1]} 12. O-O {[%clk 0:01:32.6]}
12... Bf5 {[%clk 0:01:48]} 13. cxd3 {[%clk 0:01:28.2]} 13... Bd6 {[%clk
0:01:36.9]} 14. Ne4 {[%clk 0:01:15]} 14... Bxe4 {[%clk 0:01:28.4]} 15. dxe4
{[%clk 0:01:15.9]} 15... Be5 {[%clk 0:01:28.7]} 16. Qd5 {[%clk 0:01:09.4]} 16...
Bxb2 {[%clk 0:01:05.7]} 17. Bc5 {[%clk 0:01:08.3]} 17... Qc4 {[%clk 0:00:58.8]}
18. Qxb7 {[%clk 0:01:05.5]} 18... Qxc5 {[%clk 0:00:52.3]} 19. Qxa8+ {[%clk
0:01:04.2]} 19... Ke7 {[%clk 0:00:52.7]} 20. Qxh8 {[%clk 0:01:01.5]} 20... Bxa1
{[%clk 0:00:52.9]} 21. Rxa1 {[%clk 0:01:01.7]} 21... Qd4 {[%clk 0:00:51.7]} 22.
Rf1 {[%clk 0:00:56.3]} 22... Qxe4 {[%clk 0:00:51.4]} 23. Qxg7 {[%clk 0:00:56]}
23... Qe6 {[%clk 0:00:51]} 24. Qg5+ {[%clk 0:00:55.7]} 24... f6 {[%clk
0:00:49.1]} 25. Qxb5 {[%clk 0:00:56.6]} 25... Qxa2 {[%clk 0:00:48.5]} 26. Re1+
{[%clk 0:00:56.3]} 26... Kf7 {[%clk 0:00:48.7]} 27. Qd7+ {[%clk 0:00:56.2]}
27... Kg6 {[%clk 0:00:48.5]} 28. Qe8+ {[%clk 0:00:55]} 28... Kh6 {[%clk
0:00:47.3]} 29. Qe3+ {[%clk 0:00:45]} 29... Kg6 {[%clk 0:00:46.4]} 30. Qe4+
{[%clk 0:00:44.2]} 30... Kh6 {[%clk 0:00:45.6]} 31. Qf4+ {[%clk 0:00:44.1]}
31... Kg6 {[%clk 0:00:45.8]} 32. h4 {[%clk 0:00:44]} 32... a5 {[%clk 0:00:44.6]}
33. Qg4+ {[%clk 0:00:42.3]} 33... Kh6 {[%clk 0:00:43.1]} 34. Re7 {[%clk
0:00:37.9]} 34... Qb1+ {[%clk 0:00:40.6]} 35. Kh2 {[%clk 0:00:37.8]} 35... Qg6
{[%clk 0:00:39.7]} 36. Qxg6+ {[%clk 0:00:31.6]} 36... hxg6 {[%clk 0:00:39.8]}
37. Ra7 {[%clk 0:00:32.5]} 1-0

[Event "*** Titled Tuesday Blitz"]
[Site "Chess.com"]
[Date "2020.05.19"]
[Round "4"]
[White "ramses135"]
[Black "Kapibara_Warri0r"]
[Result "1-0"]
[WhiteElo "2504"]
[BlackElo "2088"]
[TimeControl "180+1"]
[EndTime "12:39:50 PDT"]
[Termination "ramses135 won by checkmate"]

1. e4 {[%clk 0:02:57.9]} 1... e5 {[%clk 0:02:59.6]} 2. Nf3 {[%clk 0:02:54.7]}
2... Nc6 {[%clk 0:02:59.7]} 3. Bb5 {[%clk 0:02:54.3]} 3... a6 {[%clk 0:02:58.1]}
4. Bxc6 {[%clk 0:02:54.4]} 4... dxc6 {[%clk 0:02:57.5]} 5. O-O {[%clk
0:02:55.3]} 5... Bg4 {[%clk 0:02:57.2]} 6. h3 {[%clk 0:02:54.7]} 6... h5 {[%clk
0:02:57.3]} 7. d3 {[%clk 0:02:54.5]} 7... Qf6 {[%clk 0:02:48.6]} 8. Nbd2 {[%clk
0:02:54.6]} 8... g5 {[%clk 0:02:46.1]} 9. Re1 {[%clk 0:02:47.1]} 9... Be6 {[%clk
0:02:29.9]} 10. Nc4 {[%clk 0:02:34.4]} 10... g4 {[%clk 0:02:01]} 11. Ng5 {[%clk
0:02:30.3]} 11... gxh3 {[%clk 0:01:31.1]} 12. gxh3 {[%clk 0:02:24.1]} 12... Bc5
{[%clk 0:00:57.6]} 13. Qf3 {[%clk 0:02:16.9]} 13... Qxf3 {[%clk 0:00:43.7]} 14.
Nxf3 {[%clk 0:02:17.8]} 14... f6 {[%clk 0:00:43.9]} 15. Be3 {[%clk 0:02:08.3]}
15... Bxe3 {[%clk 0:00:43]} 16. Rxe3 {[%clk 0:02:09.2]} 16... Ne7 {[%clk
0:00:35.5]} 17. Kh2 {[%clk 0:02:08.6]} 17... O-O-O {[%clk 0:00:33.5]} 18. Nh4
{[%clk 0:02:07.4]} 18... Bxc4 {[%clk 0:00:28]} 19. dxc4 {[%clk 0:02:07.2]} 19...
Rd2 {[%clk 0:00:28.4]} 20. Rf3 {[%clk 0:01:55.8]} 20... Rxc2 {[%clk 0:00:19.4]}
21. Rxf6 {[%clk 0:01:55.8]} 21... Rxb2 {[%clk 0:00:19]} 22. Rf7 {[%clk
0:01:56.1]} 22... Kd7 {[%clk 0:00:14.3]} 23. Rg1 {[%clk 0:00:48.4]} 23... Ke8
{[%clk 0:00:11]} 24. Rgg7 {[%clk 0:00:47.3]} 24... Kd8 {[%clk 0:00:02.6]} 25.
Rxe7 {[%clk 0:00:45.3]} 25... Rxf2+ {[%clk 0:00:02.6]} 26. Kg3 {[%clk
0:00:45.4]} 26... Rxa2 {[%clk 0:00:03]} 27. Rd7+ {[%clk 0:00:43.9]} 27... Ke8
{[%clk 0:00:02.8]} 28. Rge7+ {[%clk 0:00:42.8]} 28... Kf8 {[%clk 0:00:02.9]} 29.
Ng6+ {[%clk 0:00:43.7]} 29... Kg8 {[%clk 0:00:03.1]} 30. Rg7# {[%clk 0:00:44.6]}
1-0

[Event "*** Titled Tuesday Blitz"]
[Site "Chess.com"]
[Date "2020.05.19"]
[Round "4"]
[White "Treacherous_horse64"]
[Black "top_bu_tz"]
[Result "0-1"]
[WhiteElo "2403"]
[BlackElo "2238"]
[TimeControl "180+1"]
[EndTime "12:39:50 PDT"]
[Termination "top_bu_tz won on time"]

1. d4 {[%clk 0:03:00]} 1... Nf6 {[%clk 0:02:58.1]} 2. Nf3 {[%clk 0:02:59.9]}
2... g6 {[%clk 0:02:58.1]} 3. Nbd2 {[%clk 0:02:58.1]} 3... Bg7 {[%clk 0:02:59]}
4. e4 {[%clk 0:02:54.1]} 4... d5 {[%clk 0:02:58.3]} 5. e5 {[%clk 0:02:51.4]}
5... Ne4 {[%clk 0:02:57.8]} 6. Bd3 {[%clk 0:02:51.8]} 6... Nxd2 {[%clk
0:02:47.7]} 7. Bxd2 {[%clk 0:02:52.5]} 7... b6 {[%clk 0:02:47.3]} 8. b4 {[%clk
0:02:50.4]} 8... Bb7 {[%clk 0:02:45.6]} 9. b5 {[%clk 0:02:48.1]} 9... e6 {[%clk
0:02:45.4]} 10. a4 {[%clk 0:02:46.8]} 10... a5 {[%clk 0:02:44.2]} 11. O-O {[%clk
0:02:39]} 11... c5 {[%clk 0:02:40.7]} 12. bxc6 {[%clk 0:02:37.9]} 12... Bxc6
{[%clk 0:02:40.1]} 13. Qe2 {[%clk 0:02:16.7]} 13... Qd7 {[%clk 0:02:38.1]} 14.
Rfb1 {[%clk 0:01:54.6]} 14... Qc7 {[%clk 0:02:07.2]} 15. h4 {[%clk 0:01:09.4]}
15... Nd7 {[%clk 0:02:06.3]} 16. h5 {[%clk 0:00:56.6]} 16... O-O {[%clk
0:01:49]} 17. g3 {[%clk 0:00:34.2]} 17... f5 {[%clk 0:01:38.5]} 18. exf6 {[%clk
0:00:25.3]} 18... Rxf6 {[%clk 0:01:32.6]} 19. Bg5 {[%clk 0:00:20.5]} 19... Rxf3
{[%clk 0:01:22.8]} 20. Qxf3 {[%clk 0:00:18.5]} 20... Bxd4 {[%clk 0:01:21.8]} 21.
hxg6 {[%clk 0:00:13.6]} 21... Rf8 {[%clk 0:01:09.4]} 22. gxh7+ {[%clk
0:00:12.1]} 22... Kh8 {[%clk 0:01:08.1]} 23. Qe2 {[%clk 0:00:05]} 23... Qxg3+
{[%clk 0:01:06.9]} 24. Kh1 {[%clk 0:00:03.1]} 24... Bxf2 {[%clk 0:00:50.8]} 0-1

[Event "*** Titled Tuesday Blitz"]
[Site "Chess.com"]
[Date "2020.05.19"]
[Round "4"]
[White "ALeks_Ivlev"]
[Black "SchmakAttack"]
[Result "1-0"]
[WhiteElo "2600"]
[BlackElo "2436"]
[TimeControl "180+1"]
[EndTime "12:39:51 PDT"]
[Termination "ALeks_Ivlev won on time"]

1. d4 {[%clk 0:02:58.1]} 1... Nf6 {[%clk 0:02:58.7]} 2. c4 {[%clk 0:02:58.3]}
2... e6 {[%clk 0:02:58]} 3. g3 {[%clk 0:02:57.8]} 3... d5 {[%clk 0:02:57.8]} 4.
Nf3 {[%clk 0:02:57.8]} 4... dxc4 {[%clk 0:02:56.4]} 5. Bg2 {[%clk 0:02:57.8]}
5... c5 {[%clk 0:02:56.9]} 6. O-O {[%clk 0:02:56.3]} 6... Nc6 {[%clk 0:02:57.3]}
7. e3 {[%clk 0:02:53.7]} 7... Rb8 {[%clk 0:02:35.4]} 8. a4 {[%clk 0:02:33.3]}
8... a6 {[%clk 0:02:06]} 9. Nfd2 {[%clk 0:02:24.7]} 9... cxd4 {[%clk 0:01:51.8]}
10. Nxc4 {[%clk 0:02:24]} 10... d3 {[%clk 0:01:18.5]} 11. Nc3 {[%clk 0:02:19.1]}
11... Bb4 {[%clk 0:01:11.9]} 12. Qb3 {[%clk 0:02:11.1]} 12... O-O {[%clk
0:01:09.7]} 13. Rd1 {[%clk 0:02:06.5]} 13... e5 {[%clk 0:00:53.6]} 14. Ne4
{[%clk 0:02:03.8]} 14... Nxe4 {[%clk 0:00:22.4]} 15. Bxe4 {[%clk 0:02:03.6]}
15... Be6 {[%clk 0:00:22.1]} 16. Bxd3 {[%clk 0:01:53.9]} 16... Qe7 {[%clk
0:00:22.5]} 17. Qc2 {[%clk 0:01:41.4]} 17... Rbc8 {[%clk 0:00:18.4]} 18. Nb6
{[%clk 0:00:59.7]} 18... Rcd8 {[%clk 0:00:07.7]} 19. Bxh7+ {[%clk 0:00:58.7]}
19... Kh8 {[%clk 0:00:08.4]} 20. Be4 {[%clk 0:00:56.5]} 20... Bc5 {[%clk
0:00:07.8]} 21. Nd5 {[%clk 0:00:54.3]} 21... Bxd5 {[%clk 0:00:07.9]} 22. Bxd5
{[%clk 0:00:54.4]} 22... Nb4 {[%clk 0:00:07.7]} 23. Qb3 {[%clk 0:00:52.9]} 23...
e4 {[%clk 0:00:05]} 24. Bc4 {[%clk 0:00:48.5]} 24... Rxd1+ {[%clk 0:00:02.7]}
25. Qxd1 {[%clk 0:00:48.3]} 25... Rd8 {[%clk 0:00:03.6]} 26. Bd2 {[%clk
0:00:46]} 26... Nd3 {[%clk 0:00:02.3]} 27. Bc3 {[%clk 0:00:42.7]} 27... Ne5
{[%clk 0:00:01.4]} 28. Qh5+ {[%clk 0:00:41.5]} 1-0

[Event "*** Titled Tuesday Blitz"]
[Site "Chess.com"]
[Date "2020.05.19"]
[Round "4"]
[White "Perecke"]
[Black "Yuri202062"]
[Result "0-1"]
[WhiteElo "2265"]
[BlackElo "2451"]
[TimeControl "180+1"]
[EndTime "12:39:52 PDT"]
[Termination "Yuri202062 won on time"]

1. e4 {[%clk 0:03:00.9]} 1... c5 {[%clk 0:02:59.4]} 2. Nf3 {[%clk 0:03:00.9]}
2... e6 {[%clk 0:02:59.5]} 3. d4 {[%clk 0:03:01.2]} 3... cxd4 {[%clk 0:02:59.5]}
4. Nxd4 {[%clk 0:03:02.1]} 4... a6 {[%clk 0:02:59.9]} 5. Bd3 {[%clk 0:02:58.7]}
5... Nf6 {[%clk 0:02:58.7]} 6. Nc3 {[%clk 0:02:54.7]} 6... d6 {[%clk 0:02:58.8]}
7. O-O {[%clk 0:02:47]} 7... Nbd7 {[%clk 0:02:58.7]} 8. Be3 {[%clk 0:02:44.6]}
8... b5 {[%clk 0:02:57.3]} 9. f4 {[%clk 0:02:42.7]} 9... Bb7 {[%clk 0:02:56.9]}
10. a3 {[%clk 0:02:15]} 10... Rc8 {[%clk 0:02:56.3]} 11. Qe2 {[%clk 0:02:07.3]}
11... Be7 {[%clk 0:02:55.7]} 12. Rad1 {[%clk 0:02:01.4]} 12... O-O {[%clk
0:02:53.5]} 13. g4 {[%clk 0:02:00.6]} 13... Rxc3 {[%clk 0:02:33]} 14. bxc3
{[%clk 0:01:58.1]} 14... Nxe4 {[%clk 0:02:31.2]} 15. f5 {[%clk 0:01:44.1]} 15...
Nxc3 {[%clk 0:02:27]} 16. Qd2 {[%clk 0:01:41]} 16... Nxd1 {[%clk 0:02:26.1]} 17.
fxe6 {[%clk 0:01:13.3]} 17... Nxe3 {[%clk 0:02:25.4]} 18. exf7+ {[%clk 0:01:10]}
18... Rxf7 {[%clk 0:02:16.4]} 19. Bxh7+ {[%clk 0:01:08.5]} 19... Kxh7 {[%clk
0:02:07.6]} 20. Rxf7 {[%clk 0:01:08.1]} 20... Ne5 {[%clk 0:01:40.8]} 21. Ne6
{[%clk 0:00:39.3]} 21... Qg8 {[%clk 0:01:27]} 22. Qf2 {[%clk 0:00:14.5]} 22...
Nf3+ {[%clk 0:01:03.1]} 23. Rxf3 {[%clk 0:00:09.2]} 23... Bxf3 {[%clk
0:01:02.1]} 24. Qxe3 {[%clk 0:00:04.8]} 24... Qf7 {[%clk 0:00:54.4]} 25. Nf4
{[%clk 0:00:01.6]} 25... Bxg4 {[%clk 0:00:44.3]} 0-1

[Event "*** Titled Tuesday Blitz"]
[Site "Chess.com"]
[Date "2020.05.19"]
[Round "4"]
[White "Alexander_Zubov"]
[Black "chito89"]
[Result "1-0"]
[WhiteElo "2951"]
[BlackElo "2730"]
[TimeControl "180+1"]
[EndTime "12:39:53 PDT"]
[Termination "Alexander_Zubov won by resignation"]

1. d4 {[%clk 0:03:00.2]} 1... Nf6 {[%clk 0:02:54.1]} 2. c4 {[%clk 0:02:59.4]}
2... e6 {[%clk 0:02:54.3]} 3. Nf3 {[%clk 0:02:59.3]} 3... Bb4+ {[%clk
0:02:53.5]} 4. Bd2 {[%clk 0:02:55.6]} 4... a5 {[%clk 0:02:52.9]} 5. Nc3 {[%clk
0:02:54.7]} 5... b6 {[%clk 0:02:45.3]} 6. Bg5 {[%clk 0:02:52.8]} 6... Bb7 {[%clk
0:02:43.3]} 7. Nd2 {[%clk 0:02:52.3]} 7... h6 {[%clk 0:02:00.5]} 8. Bh4 {[%clk
0:02:49.6]} 8... d5 {[%clk 0:02:01]} 9. cxd5 {[%clk 0:02:48.3]} 9... exd5 {[%clk
0:02:01.9]} 10. e3 {[%clk 0:02:46.2]} 10... Nbd7 {[%clk 0:01:58.6]} 11. Bb5
{[%clk 0:02:35.1]} 11... c6 {[%clk 0:01:56.4]} 12. Bd3 {[%clk 0:02:33.3]} 12...
O-O {[%clk 0:01:47.5]} 13. O-O {[%clk 0:02:31.8]} 13... Be7 {[%clk 0:01:48]} 14.
Rc1 {[%clk 0:02:24.6]} 14... c5 {[%clk 0:01:44.1]} 15. Bb5 {[%clk 0:02:21.8]}
15... Rc8 {[%clk 0:01:33.5]} 16. Qa4 {[%clk 0:02:08.4]} 16... Nb8 {[%clk
0:01:23.4]} 17. Rfd1 {[%clk 0:02:02.1]} 17... c4 {[%clk 0:00:47.9]} 18. b3
{[%clk 0:01:55.3]} 18... cxb3 {[%clk 0:00:45.7]} 19. Qxb3 {[%clk 0:01:54.4]}
19... Na6 {[%clk 0:00:32.8]} 20. Bxf6 {[%clk 0:01:46]} 20... Bxf6 {[%clk
0:00:31.3]} 21. Bxa6 {[%clk 0:01:46.4]} 21... Bxa6 {[%clk 0:00:31.6]} 22. Nxd5
{[%clk 0:01:45.5]} 22... Rxc1 {[%clk 0:00:23.9]} 23. Rxc1 {[%clk 0:01:35.4]}
23... Bb7 {[%clk 0:00:17]} 24. Nxf6+ {[%clk 0:01:29.4]} 24... Qxf6 {[%clk
0:00:15.9]} 25. Rc7 {[%clk 0:01:15.2]} 25... Ba8 {[%clk 0:00:12]} 26. f3 {[%clk
0:00:47.8]} 26... Rd8 {[%clk 0:00:08.7]} 27. a4 {[%clk 0:00:43.5]} 27... Qd6
{[%clk 0:00:08.1]} 28. Qxf7+ {[%clk 0:00:37.9]} 1-0

[Event "*** Titled Tuesday Blitz"]
[Site "Chess.com"]
[Date "2020.05.19"]
[Round "4"]
[White "jlandaw"]
[Black "CHESSMASTER759"]
[Result "0-1"]
[WhiteElo "2474"]
[BlackElo "2651"]
[TimeControl "180+1"]
[EndTime "12:39:53 PDT"]
[Termination "CHESSMASTER759 won on time"]

1. e4 {[%clk 0:03:00.9]} 1... d6 {[%clk 0:03:00]} 2. Nc3 {[%clk 0:03:00.6]} 2...
Nf6 {[%clk 0:03:00.6]} 3. g3 {[%clk 0:03:01]} 3... g6 {[%clk 0:02:59.4]} 4. Bg2
{[%clk 0:03:01.3]} 4... Bg7 {[%clk 0:03:00]} 5. d3 {[%clk 0:03:01.8]} 5... O-O
{[%clk 0:03:00.6]} 6. f4 {[%clk 0:03:02.2]} 6... c5 {[%clk 0:02:58.6]} 7. Nf3
{[%clk 0:03:01.9]} 7... Nc6 {[%clk 0:02:53.3]} 8. h3 {[%clk 0:03:01]} 8... Rb8
{[%clk 0:02:52.8]} 9. a3 {[%clk 0:03:00.4]} 9... b5 {[%clk 0:02:45.8]} 10. Rb1
{[%clk 0:03:00.8]} 10... a5 {[%clk 0:02:44.1]} 11. a4 {[%clk 0:03:00.7]} 11...
b4 {[%clk 0:02:34.8]} 12. Nb5 {[%clk 0:03:00.4]} 12... Ba6 {[%clk 0:02:33.6]}
13. c4 {[%clk 0:03:00.6]} 13... bxc3 {[%clk 0:02:32]} 14. bxc3 {[%clk
0:03:01.5]} 14... Nd7 {[%clk 0:02:27.4]} 15. Bd2 {[%clk 0:02:58.1]} 15... c4
{[%clk 0:02:10.7]} 16. d4 {[%clk 0:02:52]} 16... Nb6 {[%clk 0:02:10.9]} 17. d5
{[%clk 0:02:45.5]} 17... Bxb5 {[%clk 0:02:05.2]} 18. Rxb5 {[%clk 0:02:39.1]}
18... Na7 {[%clk 0:02:05.3]} 19. Rxa5 {[%clk 0:02:34.4]} 19... Qc7 {[%clk
0:02:00.7]} 20. Nd4 {[%clk 0:01:46.8]} 20... Nd7 {[%clk 0:01:38.9]} 21. Rxa7
{[%clk 0:01:08.2]} 21... Qxa7 {[%clk 0:01:39.8]} 22. Nc6 {[%clk 0:01:08.7]}
22... Qc5 {[%clk 0:01:39.5]} 23. Nxe7+ {[%clk 0:01:09.2]} 23... Kh8 {[%clk
0:01:37.1]} 24. Nc6 {[%clk 0:01:07.3]} 24... Rb2 {[%clk 0:01:35.1]} 25. Qc1
{[%clk 0:01:05.4]} 25... Ra2 {[%clk 0:01:34.1]} 26. Be3 {[%clk 0:01:04.4]} 26...
Qa3 {[%clk 0:01:28.8]} 27. O-O {[%clk 0:00:55.1]} 27... Bxc3 {[%clk 0:01:23.8]}
28. a5 {[%clk 0:00:44.3]} 28... Qxc1 {[%clk 0:01:19.3]} 29. Rxc1 {[%clk
0:00:45.2]} 29... Ra1 {[%clk 0:01:19.9]} 30. Bf1 {[%clk 0:00:37.9]} 30... Rxc1
{[%clk 0:01:15.4]} 31. Bxc1 {[%clk 0:00:38.8]} 31... Ra8 {[%clk 0:01:15.7]} 32.
Bxc4 {[%clk 0:00:27.1]} 32... Bxa5 {[%clk 0:01:15.5]} 33. e5 {[%clk 0:00:14.9]}
33... Bb6+ {[%clk 0:01:00.8]} 34. Kg2 {[%clk 0:00:15.2]} 34... Bc5 {[%clk
0:00:54.9]} 35. e6 {[%clk 0:00:12.8]} 35... Nb6 {[%clk 0:00:54.8]} 0-1

[Event "*** Titled Tuesday Blitz"]
[Site "Chess.com"]
[Date "2020.05.19"]
[Round "4"]
[White "hypert"]
[Black "SergioGarciaFuentes"]
[Result "1-0"]
[WhiteElo "2381"]
[BlackElo "2127"]
[TimeControl "180+1"]
[EndTime "12:39:55 PDT"]
[Termination "hypert won by resignation"]

1. e4 {[%clk 0:03:00.9]} 1... e5 {[%clk 0:02:53.1]} 2. Nf3 {[%clk 0:03:01]} 2...
Nf6 {[%clk 0:02:52]} 3. Nc3 {[%clk 0:03:01.5]} 3... Bb4 {[%clk 0:02:49.6]} 4.
Nd5 {[%clk 0:02:54.3]} 4... Nxd5 {[%clk 0:02:47.4]} 5. exd5 {[%clk 0:02:54.8]}
5... O-O {[%clk 0:02:46.5]} 6. Bc4 {[%clk 0:02:53.7]} 6... e4 {[%clk 0:02:31.6]}
7. Nd4 {[%clk 0:02:52.9]} 7... Qf6 {[%clk 0:02:03.8]} 8. Nb3 {[%clk 0:02:44.2]}
8... Re8 {[%clk 0:01:51.6]} 9. O-O {[%clk 0:02:42.7]} 9... a5 {[%clk 0:01:33.2]}
10. c3 {[%clk 0:02:39.4]} 10... Bd6 {[%clk 0:01:25.4]} 11. d4 {[%clk 0:02:37.9]}
11... c6 {[%clk 0:00:55.2]} 12. a4 {[%clk 0:02:28.3]} 12... Na6 {[%clk
0:00:47.9]} 13. Qh5 {[%clk 0:02:08.1]} 13... Nc7 {[%clk 0:00:42]} 14. Be3 {[%clk
0:01:46.7]} 14... Qg6 {[%clk 0:00:28.6]} 15. Qxg6 {[%clk 0:01:35.9]} 15... hxg6
{[%clk 0:00:29.5]} 16. Rae1 {[%clk 0:01:31.3]} 16... cxd5 {[%clk 0:00:28.3]} 17.
Be2 {[%clk 0:01:31.5]} 17... b6 {[%clk 0:00:26.1]} 18. f3 {[%clk 0:01:28.6]}
18... f5 {[%clk 0:00:21.2]} 19. g4 {[%clk 0:01:23.6]} 19... f4 {[%clk 0:00:21]}
20. fxe4 {[%clk 0:01:09.5]} 20... fxe3 {[%clk 0:00:20.1]} 21. e5 {[%clk
0:01:09.8]} 21... Bf8 {[%clk 0:00:19.7]} 22. Bd3 {[%clk 0:01:08.8]} 22... Re6
{[%clk 0:00:13.5]} 23. Rxe3 {[%clk 0:01:04.8]} 23... Ba6 {[%clk 0:00:13.5]} 24.
Nd2 {[%clk 0:00:59.8]} 24... Bxd3 {[%clk 0:00:12.7]} 25. Rxd3 {[%clk 0:01:00.7]}
25... d6 {[%clk 0:00:12.9]} 26. Nf3 {[%clk 0:01:00.9]} 26... Rae8 {[%clk
0:00:11.3]} 27. Ng5 {[%clk 0:00:56.1]} 27... R6e7 {[%clk 0:00:09.9]} 28. exd6
{[%clk 0:00:55.2]} 28... Rd7 {[%clk 0:00:09.8]} 29. dxc7 {[%clk 0:00:54.8]}
29... Rxc7 {[%clk 0:00:10.7]} 30. Rdf3 {[%clk 0:00:52.4]} 30... Be7 {[%clk
0:00:09.1]} 31. Ne6 {[%clk 0:00:50.2]} 31... Rc6 {[%clk 0:00:08.5]} 32. Nf4
{[%clk 0:00:50.1]} 32... Bg5 {[%clk 0:00:07.6]} 33. Nxd5 {[%clk 0:00:49.3]} 1-0